bitfinex/quotes_ETHUSD_20250520
["timestamp","ask_amount","ask_price","bid_price","bid_amount"]
[1747712982430,4.42731621,2545.3,2544.6,8.106]
[1747712982627,4.42731621,2545.3,2544.6,8.48156289]
[1747712983044,3.92966157,2544.8,2544.6,8.48156289]
[1747712983349,3.92966157,2544.8,2544.7,0.92828629]
[1747712983553,3.9294932,2544.9,2544.7,0.92828629]
[1747712983847,3.92958189,2544.8,2544.7,0.92828629]
[1747712984251,3.92932128,2545.0,2544.7,0.92828629]
[1747712984452,3.92932777,2545.0,2544.8,1.76548492]
[1747712984650,3.92923793,2545.1,2544.8,1.76548492]
[1747712984831,3.92929042,2545.0,2544.8,1.76548492]
[1747712985865,0.60121624,2546.1,2544.8,1.13572685]
[1747712986057,1.94883098,2546.8,2545.6,0.7509]
[1747712986242,1.94883098,2546.8,2545.8,8.7509]
[1747712986243,3.92735672,2546.3,2545.8,8.7509]
[1747712986445,5.87543274,2546.8,2545.9,28.45429]
[1747712986758,3.92738453,2546.3,2545.9,28.45429]
[1747712987174,3.92716146,2546.4,2545.9,28.45429]
[1747712987351,3.92699995,2546.5,2546.0,0.82]
[1747712987672,3.9266751,2546.7,2546.0,0.82]
[1747712987673,3.9268507,2546.6,2546.1,8.104]
[1747712987973,3.9268507,2546.6,2546.2,1.19565113]
[1747712988135,0.05,2546.9,2546.3,8.104]
[1747712988334,3.92689098,2546.6,2546.3,8.104]
[1747712988551,3.92695857,2546.5,2546.4,8.924]
[1747712989438,3.92691754,2546.6,2546.4,9.85396511]
[1747712989642,3.92688269,2546.6,2546.4,9.85396511]
[1747712989838,3.9269397,2546.6,2546.4,9.85396511]
[1747712990038,3.92695857,2546.5,2546.4,17.85396511]
[1747712990478,3.92695857,2546.5,2546.4,9.74996511]
[1747712990981,3.92695857,2546.5,2546.4,16.923]
[1747712992053,3.92695857,2546.5,2546.4,16.936]
[1747712992455,3.92695857,2546.5,2546.4,8.82]
[1747712992764,3.92695857,2546.5,2546.4,16.936]
[1747712993548,3.92695857,2546.5,2546.4,8.82]
[1747712993748,3.92695857,2546.5,2546.4,16.936]
[1747712993949,3.92695857,2546.5,2546.1,3.713229]
[1747712993950,3.92742125,2546.2,2546.1,3.713229]
[1747712994153,3.92742125,2546.2,2546.1,19.828229]
[1747712994961,3.92742125,2546.2,2546.1,11.713229]
[1747712995145,3.92742125,2546.2,2546.1,19.828229]
[1747712995479,3.92742125,2546.2,2546.1,16.9008]
[1747712996044,3.9273353,2546.3,2546.1,16.9008]
[1747712996286,3.9273353,2546.3,2546.2,8.0]
[1747712996480,3.92714159,2546.4,2546.1,8.9008]
[1747712996659,0.05,2546.9,2546.1,8.9008]
[1747712996860,3.92712483,2546.4,2546.2,9.69008]
[1747712997277,3.92701496,2546.5,2546.2,9.69008]
[1747712997482,3.92701496,2546.5,2546.3,0.7931]
[1747712999410,3.92711278,2546.4,2546.3,0.7931]
[1747712999603,3.92711278,2546.4,2546.3,1.852918]
[1747713000072,3.92695857,2546.5,2546.4,8.7535]
[1747713000268,3.92695857,2546.5,2546.4,0.7535]
[1747713000472,3.92742125,2546.2,2546.1,0.7535]
[1747713000672,3.92742125,2546.2,2546.1,8.8675]
[1747713004215,3.92742125,2546.2,2546.1,0.7535]
[1747713004384,3.92742125,2546.2,2546.1,8.8675]
[1747713004576,3.92742125,2546.2,2546.1,0.7535]
[1747713004787,3.9275755,2546.1,2546.0,8.0]
[1747713005011,3.9275755,2546.1,2546.0,16.114]
[1747713005215,3.92772977,2546.0,2545.9,16.966]
[1747713005602,3.92772977,2546.0,2545.9,25.08]
[1747713005920,3.92772977,2546.0,2545.9,33.08]
[1747713006914,3.92772977,2546.0,2545.9,33.069]
[1747713007817,3.92760073,2546.1,2545.9,36.3759]
[1747713008181,3.92772977,2546.0,2545.9,36.3759]
[1747713009637,3.92747839,2546.2,2546.0,0.7625]
[1747713009848,3.92652315,2546.8,2546.0,8.7625]
[1747713010136,0.05,2546.9,2546.2,0.8151]
[1747713010334,0.05,2546.9,2546.8,8.0]
[1747713010499,0.05,2546.9,2546.8,21.65559599]
[1747713010700,0.05,2546.9,2546.8,34.93753299]
[1747713011135,0.05,2546.9,2546.8,31.72998699]
[1747713011430,0.05,2546.9,2546.8,29.72521299]
[1747713012135,0.05,2546.9,2546.8,30.09907694]
[1747713012436,0.05,2546.9,2546.8,30.49686642]
[1747713013244,3.97483742,2547.9,2547.4,3.92554503]
[1747713013245,0.05,2547.9,2547.4,3.92554503]
[1747713013410,0.05,2547.9,2547.5,25.066]
[1747713013735,0.05,2547.9,2547.6,8.0]
[1747713014597,0.05,2547.9,2547.7,0.37386395]
[1747713015012,0.05,2547.9,2547.8,8.112]
[1747713015206,0.05,2547.9,2547.8,9.7605864]
[1747713015615,0.05,2547.9,2547.8,10.13445035]
[1747713015813,3.97480081,2547.9,2547.8,10.13445035]
[1747713016011,3.97480081,2547.9,2547.8,2.02245035]
[1747713016217,3.97480081,2547.9,2547.8,10.13445035]
[1747713016742,3.97480081,2547.9,2547.8,2.02245035]
[1747713016939,3.97480081,2547.9,2547.8,10.13445035]
[1747713017246,3.97480081,2547.9,2547.8,9.7605864]
[1747713018900,3.97480081,2547.9,2547.8,17.7595864]
[1747713020319,0.05,2547.9,2547.8,9.6485864]
[1747713020625,3.97480081,2547.9,2547.8,16.111]
[1747713021542,0.05,2547.9,2547.8,16.111]
[1747713022047,0.05,2547.9,2547.8,16.9105]
[1747713022629,0.05,2547.9,2547.8,28.200687]
[1747713022830,0.05,2547.9,2547.8,18.516813]
[1747713023033,0.05,2547.9,2547.8,31.9571813]
[1747713023214,0.05,2547.9,2547.8,29.1961813]
[1747713023541,0.05,2547.9,2547.8,33.12113616]
[1747713024241,0.05,2547.9,2547.8,33.49374178]
[1747713025144,0.05,2547.9,2547.8,39.82891292]
[1747713025549,0.05,2547.9,2547.8,43.75386778]
[1747713028249,0.05,2547.9,2547.8,28.92074178]
[1747713028549,0.05,2547.9,2547.8,58.92451578]
[1747713028726,0.05,2547.9,2547.8,72.89551578]
[1747713029115,0.05,2548.9,2548.0,0.7764]
[1747713029315,0.05,2548.9,2548.1,0.87764]
[1747713029316,3.92418352,2548.4,2548.1,0.87764]
[1747713029613,3.92394106,2548.5,2548.2,0.37260562]
[1747713029817,3.92394106,2548.5,2548.4,8.0]
[1747713030216,3.92394106,2548.5,2548.4,8.088]
[1747713031043,3.92407589,2548.4,2548.2,5.882]
[1747713031240,3.92395227,2548.5,2548.3,0.675964]
[1747713031556,3.92395227,2548.5,2548.3,8.088]
[1747713032154,3.92395227,2548.5,2548.1,0.87764]
[1747713032453,3.92373591,2548.6,2548.1,0.87764]
[1747713032454,3.92378981,2548.6,2548.2,8.088]
[1747713032856,3.92378981,2548.6,2548.4,8.0]
[1747713033157,3.92354988,2548.8,2548.5,19.3696]
[1747713034956,3.92359451,2548.7,2548.5,19.3696]
[1747713035157,3.92359451,2548.7,2548.5,24.941]
[1747713035158,3.92372282,2548.6,2548.5,24.941]
[1747713035359,3.92372282,2548.6,2548.5,33.028]
[1747713037927,3.92372282,2548.6,2548.5,24.941]
[1747713038160,3.92372282,2548.6,2548.5,33.028]
[1747713038962,3.92372282,2548.6,2548.5,27.74349268]
[1747713039162,3.92372282,2548.6,2548.5,35.83049268]
[1747713039326,3.92372282,2548.6,2548.5,27.74349268]
[1747713039528,3.92372282,2548.6,2548.5,35.83049268]
[1747713039936,3.92372282,2548.6,2548.5,27.74349268]
[1747713040138,3.92372282,2548.6,2548.5,33.028]
[1747713041448,3.92372282,2548.6,2548.5,33.40261241]
[1747713042862,3.92372282,2548.6,2548.5,25.31561241]
[1747713043066,3.92372282,2548.6,2548.5,33.40261241]
[1747713046578,3.92372282,2548.6,2548.5,33.40161241]
[1747713046783,3.92372282,2548.6,2548.5,17.31561241]
[1747713046947,4.72062282,2548.6,2548.5,25.40161241]
[1747713047277,4.72062282,2548.6,2548.5,17.31561241]
[1747713047475,4.72062282,2548.6,2548.5,25.40161241]
[1747713047838,4.72062282,2548.6,2548.5,25.027]
[1747713048391,4.72062282,2548.6,2548.5,16.941]
[1747713048576,4.72062282,2548.6,2548.5,25.028]
[1747713048890,4.72062282,2548.6,2548.5,16.941]
[1747713049186,4.72062282,2548.6,2548.5,25.028]
[1747713050641,4.72062282,2548.6,2548.5,25.40348224]
[1747713051778,3.92372282,2548.6,2548.5,25.40348224]
[1747713058202,3.92372282,2548.6,2548.5,25.39448224]
[1747713058499,3.92372282,2548.6,2548.5,17.31648224]
[1747713058686,3.92372282,2548.6,2548.5,25.39448224]
[1747713059563,3.92372282,2548.6,2548.5,8.078]
[1747713059564,5.23502282,2548.6,2548.5,8.078]
[1747713059763,4.68502282,2548.6,2548.5,8.078]
[1747713061572,3.92372282,2548.6,2548.5,8.078]
[1747713062012,0.7843,2548.5,2548.0,0.46728017]
[1747713062322,13.22819275,2548.1,2548.0,0.46728017]
[1747713062806,0.55,2547.5,2547.2,8.078]
[1747713063111,5.22942527,2547.3,2547.2,8.078]
[1747713063412,4.67942527,2547.3,2547.2,8.078]
[1747713063714,3.92572527,2547.3,2547.2,8.93276952]
[1747713064594,3.92557735,2547.4,2547.2,8.93276952]
[1747713065172,3.92572527,2547.3,2547.2,8.93276952]
[1747713065680,3.92572527,2547.3,2547.2,16.93276952]
[1747713066407,3.92572527,2547.3,2547.2,8.93276952]
[1747713066976,3.92510892,2547.7,2547.2,8.93276952]
[1747713067206,3.92510892,2547.7,2547.3,0.89327695]
[1747713067376,3.92557117,2547.4,2547.3,0.89327695]
[1747713067576,0.55,2548.1,2547.3,8.89327695]
[1747713067577,3.92541883,2547.5,2547.3,8.89327695]
[1747713068018,3.92557117,2547.4,2547.3,8.89327695]
[1747713068179,3.92572527,2547.3,2547.2,8.078]
[1747713072614,3.92618767,2547.0,2546.9,0.7587]
[1747713072917,3.92634182,2546.9,2546.8,8.0]
[1747713073077,3.92634182,2546.9,2546.8,16.08]
[1747713075217,0.7912,2547.5,2546.8,19.46033]
[1747713075218,3.92607802,2547.1,2546.8,19.46033]
[1747713075881,3.92618496,2547.1,2546.8,19.46033]
[1747713076582,3.92621366,2547.0,2546.8,19.46033]
[1747713076785,3.92621366,2547.0,2546.9,8.081]
[1747713077003,3.92621366,2547.0,2546.9,11.98336288]
[1747713077915,3.92610221,2547.1,2547.0,8.0]
[1747713079018,3.92610221,2547.1,2547.0,16.081]
[1747713079179,3.92603352,2547.1,2547.0,8.081]
[1747713079904,8.0,2547.6,2547.1,0.8014]
[1747713080108,3.92583903,2547.3,2547.1,0.8014]
[1747713080282,3.92587939,2547.2,2547.1,0.8014]
[1747713084430,3.9257909,2547.3,2547.1,8.8014]
[1747713084618,0.7875,2547.9,2547.1,8.8014]
[1747713084785,3.92541598,2547.6,2547.2,1.68824]
[1747713084986,14.18467796,2548.0,2547.3,8.8298]
[1747713084987,3.92524374,2547.7,2547.3,8.8298]
[1747713085200,3.9254217,2547.5,2547.3,8.8298]
[1747713085804,3.9254217,2547.5,2547.3,14.7138]
[1747713086000,3.9254217,2547.5,2547.4,0.3744555]
[1747713086224,3.9254217,2547.5,2547.4,2.05210505]
[1747713086995,3.92512777,2547.7,2547.4,2.05210505]
[1747713087326,3.92512777,2547.7,2547.6,8.0]
[1747713088043,3.92504758,2547.8,2547.6,8.0]
[1747713088335,3.92481112,2547.9,2547.6,8.0]
[1747713088551,3.92481112,2547.9,2547.7,19.78050105]
[1747713088826,15.70638183,2548.8,2547.7,19.78050105]
[1747713088827,3.92465046,2548.0,2547.7,19.78050105]
[1747713088990,3.92461048,2548.1,2547.8,8.0]
[1747713089187,3.92433874,2548.2,2547.8,8.0]
[1747713089188,3.92469255,2548.0,2547.8,8.0]
[1747713089430,3.92469255,2548.0,2547.9,10.77805011]
[1747713089597,3.92455949,2548.1,2547.9,13.70244011]
[1747713089801,3.92421691,2548.3,2548.0,16.067]
[1747713090124,3.92449275,2548.1,2548.0,16.067]
[1747713091118,3.92449275,2548.1,2548.0,16.4414555]
[1747713091435,3.92449275,2548.1,2548.0,18.36340606]
[1747713093737,3.92449275,2548.1,2548.0,10.29640606]
[1747713093900,3.92449275,2548.1,2548.0,10.36240606]
[1747713094098,3.92449275,2548.1,2548.0,8.4404555]
[1747713094806,3.92449275,2548.1,2548.0,0.3744555]
[1747713095006,3.92464678,2548.0,2547.9,8.066]
[1747713096824,3.92495486,2547.8,2547.7,16.947]
[1747713097028,3.92495486,2547.8,2547.7,25.013]
[1747713097534,4.75195486,2547.8,2547.7,25.013]
[1747713099404,3.92495486,2547.8,2547.7,25.013]
[1747713103044,3.92480081,2547.9,2547.8,8.0]
[1747713103208,3.92480081,2547.9,2547.8,16.066]
[1747713103836,3.92495486,2547.8,2547.7,25.321762]
[1747713104009,3.92495486,2547.8,2547.7,33.387762]
[1747713105435,3.92433874,2548.2,2547.8,8.0]
[1747713105635,3.92408162,2548.4,2547.9,0.8133]
[1747713105947,3.92408162,2548.4,2548.0,0.7811]
[1747713106340,3.92341494,2548.8,2548.3,0.7811]
[1747713106507,3.92372282,2548.6,2548.5,8.0]
[1747713107642,3.92372282,2548.6,2548.5,8.374762]
[1747713108043,3.92363884,2548.7,2548.5,8.374762]
[1747713108248,0.05,2548.9,2548.5,8.374762]
[1747713108542,0.05,2548.9,2548.6,0.8014]
[1747713108543,3.97337931,2548.9,2548.6,0.8014]
[1747713108722,0.05,2548.9,2548.7,16.943]
[1747713108922,3.92351051,2548.8,2548.7,16.943]
[1747713110846,4.67721051,2548.8,2548.7,16.943]
[1747713111051,3.92351051,2548.8,2548.7,25.008]
[1747713113965,3.92351051,2548.8,2548.7,28.39124]
[1747713117072,3.92351051,2548.8,2548.7,16.943]
[1747713117241,3.92351051,2548.8,2548.7,24.991]
[1747713117967,3.92351051,2548.8,2548.7,16.943]
[1747713118152,3.92351051,2548.8,2548.7,24.991]
[1747713121491,3.92351051,2548.8,2547.8,0.62335753]
[1747713121492,3.92480081,2547.9,2547.8,0.62335753]
[1747713121658,0.7801,2548.6,2547.8,10.90101957]
[1747713121865,3.92443171,2548.2,2547.9,8.0]
[1747713122067,3.92451591,2548.1,2547.9,8.0]
[1747713122259,3.92451591,2548.1,2548.0,0.37426089]
[1747713122465,3.92451591,2548.1,2548.0,2.23945318]
[1747713124288,3.92451591,2548.1,2548.0,3.01015318]
[1747713125290,3.92451591,2548.1,2548.0,8.42226089]
[1747713127695,3.92441359,2548.2,2548.1,8.0]
[1747713127881,3.92424937,2548.3,2548.1,8.0]
[1747713128068,3.92424937,2548.3,2548.2,0.7833]
[1747713128250,3.92424937,2548.3,2548.2,10.50385609]
[1747713128464,3.9240892,2548.4,2548.2,10.50385609]
[1747713129136,3.9240892,2548.4,2548.2,10.87811698]
[1747713129401,3.92403076,2548.4,2548.2,10.87811698]
[1747713129602,3.92390741,2548.5,2548.3,8.0]
[1747713129798,3.92390741,2548.5,2548.4,1.8878117]
[1747713130007,3.92390741,2548.5,2548.2,2.87811698]
[1747713130462,3.92410044,2548.4,2548.3,0.37426089]
[1747713130662,3.9239385,2548.5,2548.3,0.37426089]
[1747713130899,3.92375866,2548.6,2548.3,0.37426089]
[1747713131480,0.05,2548.9,2548.3,0.37426089]
[1747713131481,3.92388744,2548.5,2548.3,0.37426089]
[1747713131694,3.92388744,2548.5,2548.3,1.46207259]
[1747713132087,3.92388744,2548.5,2548.4,0.37426089]
[1747713134005,3.92379361,2548.6,2548.4,0.37426089]
[1747713134206,3.92379361,2548.6,2548.5,16.048]
[1747713134877,3.92356887,2548.7,2548.5,8.048]
[1747713135094,3.92356887,2548.7,2548.6,0.84222609]
[1747713135807,3.92356887,2548.7,2548.6,1.21648698]
[1747713136406,3.92356887,2548.7,2548.6,0.37426089]
[1747713137610,3.92356887,2548.7,2548.6,8.37426089]
[1747713138912,3.92343144,2548.8,2548.6,8.37426089]
[1747713139104,0.05,2548.9,2548.6,9.14466089]
[1747713139413,3.92356887,2548.7,2548.6,9.14466089]
[1747713139613,3.92356887,2548.7,2548.6,12.60472453]
[1747713139912,3.92356887,2548.7,2548.6,12.23046364]
[1747713140414,3.92356887,2548.7,2548.6,19.50806364]
[1747713140711,3.92356887,2548.7,2548.6,16.048]
[1747713141075,3.92356887,2548.7,2548.6,16.42339348]
[1747713144017,3.92343538,2548.8,2548.6,16.42339348]
[1747713144519,3.92343538,2548.8,2548.7,0.37539348]
[1747713145485,3.92343538,2548.8,2548.7,8.40639348]
[1747713145686,3.92343538,2548.8,2548.7,10.74151835]
[1747713146181,3.92343538,2548.8,2548.7,2.71051835]
[1747713146387,4.74253538,2548.8,2548.7,8.40639348]
[1747713150221,4.74253538,2548.8,2548.7,0.37539348]
[1747713150518,4.74253538,2548.8,2548.7,8.40539348]
[1747713152588,3.97329168,2548.9,2548.7,11.72333283]
[1747713153136,3.92294464,2549.2,2548.8,28.363001]
[1747713153334,3.92294464,2549.2,2548.8,8.0]
[1747713154005,3.92268385,2549.3,2548.9,0.37539348]
[1747713154215,3.92265089,2549.3,2549.0,0.8059]
[1747713154885,3.92265089,2549.3,2549.1,0.37539348]
[1747713155086,3.92265089,2549.3,2549.2,16.031]
[1747713156121,3.92242076,2549.5,2549.3,8.0]
[1747713156323,3.92242076,2549.5,2549.4,2.4031]
[1747713156617,3.92242076,2549.5,2549.2,8.031]
[1747713156787,3.92242076,2549.5,2549.3,0.777]
[1747713156988,3.92187622,2549.8,2549.4,8.40539348]
[1747713157242,3.92233771,2549.5,2549.4,16.40539348]
[1747713157522,3.92233771,2549.5,2549.4,18.09273038]
[1747713160450,3.92233771,2549.5,2549.4,8.40439348]
[1747713161543,4.71543771,2549.5,2549.4,8.40439348]
[1747713161742,3.92233771,2549.5,2549.4,8.40439348]
[1747713162256,3.92233771,2549.5,2549.4,0.37539348]
[1747713162439,3.92233771,2549.5,2549.4,8.40439348]
[1747713162624,3.92233771,2549.5,2549.4,0.37539348]
[1747713162825,3.92233771,2549.5,2549.4,8.40439348]
[1747713168257,3.92233771,2549.5,2549.4,17.24483283]
[1747713170154,3.92223495,2549.6,2549.5,8.0]
[1747713171164,3.92223495,2549.6,2549.5,26.08379348]
[1747713172355,3.92223495,2549.6,2549.5,25.33739348]
[1747713173154,3.9221089,2549.7,2549.5,32.962]
[1747713173357,3.9221089,2549.7,2549.6,3.2962]
[1747713174361,3.9221089,2549.7,2549.6,3.67073761]
[1747713175763,3.9221089,2549.7,2549.6,3.2962]
[1747713176253,3.92218387,2549.6,2549.5,32.962]
[1747713176571,4.74168387,2549.6,2549.5,24.942]
[1747713178553,4.74168387,2549.6,2549.5,16.934]
[1747713178753,4.74168387,2549.6,2549.5,24.941]
[1747713181556,3.92218387,2549.6,2549.5,24.941]
[1747713182578,3.92218387,2549.6,2549.5,17.3092988]
[1747713182774,4.74418387,2549.6,2549.5,25.3172988]
[1747713183480,4.74418387,2549.6,2549.5,17.3092988]
[1747713183680,4.74418387,2549.6,2549.5,25.3172988]
[1747713183869,4.74418387,2549.6,2549.5,24.942]
[1747713185251,3.92218387,2549.6,2549.5,24.942]
[1747713189051,4.74418387,2549.6,2549.5,24.942]
[1747713189581,4.74418387,2549.6,2549.5,16.934]
[1747713189890,4.74418387,2549.6,2549.5,24.942]
[1747713190086,4.74418387,2549.6,2549.5,16.934]
[1747713190275,3.92295319,2549.1,2549.0,0.46797548]
[1747713190481,3.92295319,2549.1,2549.0,8.47597548]
[1747713192185,3.92295319,2549.1,2549.0,8.008]
[1747713193915,3.92341494,2548.8,2548.7,24.934]
[1747713194188,3.92341494,2548.8,2548.7,32.942]
[1747713195110,3.92341494,2548.8,2548.7,32.943]
[1747713195389,3.92341494,2548.8,2548.7,25.30913253]
[1747713195689,3.92341494,2548.8,2548.7,33.31813253]
[1747713196099,3.92341494,2548.8,2548.7,25.31813253]
[1747713198692,3.92341494,2548.8,2548.7,17.30913253]
[1747713198897,3.92341494,2548.8,2548.7,25.31813253]
[1747713200110,3.92341494,2548.8,2548.7,24.943]
[1747713200485,3.92341494,2548.8,2548.7,16.934]
[1747713200686,3.92341494,2548.8,2548.7,24.943]
[1747713202211,3.92341494,2548.8,2548.7,16.934]
[1747713203012,3.92341494,2548.8,2548.7,24.943]
[1747713205409,3.92341494,2548.8,2548.7,28.1911]
[1747713205714,3.92323127,2549.0,2548.7,36.1911]
[1747713205893,3.92303928,2549.1,2548.7,35.4373]
[1747713206093,3.92303928,2549.1,2548.8,0.8072]
[1747713206415,3.9231224,2549.0,2548.8,1.18213468]
[1747713206614,3.9231224,2549.0,2548.9,11.66194347]
[1747713207278,3.92302802,2549.1,2549.0,8.0]
[1747713208393,3.92302802,2549.1,2549.0,8.37493468]
[1747713209823,3.92287048,2549.2,2549.0,8.37493468]
[1747713210318,3.92287048,2549.2,2549.1,8.35893468]
[1747713210481,3.92287048,2549.2,2549.1,11.1340225]
[1747713214625,3.92268009,2549.3,2549.2,8.0]
[1747713216022,3.92268009,2549.3,2549.2,8.37493468]
[1747713221112,3.92255242,2549.4,2549.2,8.37493468]
[1747713221631,3.92215448,2549.7,2549.3,0.37493468]
[1747713221808,3.92247235,2549.5,2549.3,19.22333693]
[1747713222009,3.92249156,2549.4,2549.3,27.22333693]
[1747713224528,3.92249156,2549.4,2549.3,25.30993468]
[1747713224837,3.92249156,2549.4,2549.3,17.30993468]
[1747713225595,3.92249156,2549.4,2549.3,25.29293468]
[1747713226336,4.70959156,2549.4,2549.3,25.29293468]
[1747713228503,4.70959156,2549.4,2549.3,17.30993468]
[1747713228703,3.92249156,2549.4,2549.3,25.29393468]
[1747713234435,3.92249156,2549.4,2549.3,24.919]
[1747713235937,3.92249156,2549.4,2549.3,24.893]
[1747713236847,3.92249156,2549.4,2549.3,16.935]
[1747713237014,3.92249156,2549.4,2549.3,24.893]
[1747713240153,3.92249156,2549.4,2549.3,7.958]
[1747713242255,3.92295319,2549.1,2549.0,24.936]
[1747713242462,3.92295319,2549.1,2549.0,35.51360755]
[1747713242633,3.92295319,2549.1,2549.0,16.936]
[1747713242964,3.92282756,2549.2,2549.0,25.6608]
[1747713243251,3.92295319,2549.1,2549.0,25.6608]
[1747713244330,3.92295319,2549.1,2549.0,16.936]
[1747713247642,3.92295319,2549.1,2549.0,17.31143361]
[1747713248168,3.92295319,2549.1,2549.0,18.11493361]
[1747713248469,3.92295319,2549.1,2549.0,18.7405502]
[1747713249172,3.92187622,2549.8,2549.0,26.7405502]
[1747713249469,0.05,2549.9,2549.0,26.7405502]
[1747713249470,3.92233587,2549.6,2549.2,0.8157]
[1747713249767,3.92244758,2549.5,2549.2,0.8157]
[1747713250769,3.92244758,2549.5,2549.3,0.37543361]
[1747713250945,3.92244758,2549.5,2549.4,7.958]
[1747713251769,3.92244758,2549.5,2549.4,8.33343361]
[1747713256377,3.92244758,2549.5,2549.4,8.33243361]
[1747713260558,3.92244758,2549.5,2549.4,7.957]
[1747713261174,3.9227993,2549.2,2549.1,0.46797548]
[1747713261482,3.9227993,2549.2,2549.1,10.16537303]
[1747713261985,3.9227993,2549.2,2549.1,10.07267479]
[1747713263673,3.9227993,2549.2,2549.1,8.33227724]
[1747713266154,3.9227993,2549.2,2549.1,0.37527724]
[1747713266357,3.9227993,2549.2,2549.1,8.30527724]
[1747713285598,3.9227993,2549.2,2549.1,9.11417724]
[1747713286673,3.9227993,2549.2,2549.1,9.58215272]
[1747713288368,3.9227993,2549.2,2549.1,12.88430374]
[1747713289611,3.9227993,2549.2,2549.1,18.76430374]
[1747713296022,3.9227993,2549.2,2549.1,17.95540374]
[1747713296185,3.9227993,2549.2,2549.1,14.65325272]
[1747713297727,3.92261358,2549.4,2549.1,26.30357572]
[1747713297933,3.92226017,2549.6,2549.2,8.03922217]
[1747713298222,3.92264543,2549.3,2549.2,8.0]
[1747713298397,3.92264543,2549.3,2549.2,14.63935988]
[1747713298598,3.92256268,2549.4,2549.2,14.63935988]
[1747713298803,3.92256268,2549.4,2549.2,11.90236288]
[1747713299194,3.92256268,2549.4,2549.3,0.37527724]
[1747713300192,3.92256268,2549.4,2549.3,17.77725272]
[1747713300399,3.92256268,2549.4,2549.3,21.6796156]
[1747713301833,0.05,2549.9,2549.3,21.6796156]
[1747713302015,3.92233481,2549.6,2549.4,8.0]
[1747713302730,3.92233481,2549.6,2549.5,0.37527724]
[1747713303031,3.92233481,2549.6,2549.5,11.3432388]
[1747713303231,0.05,2549.9,2549.6,8.0]
[1747713303432,0.05,2549.9,2549.8,8.7529]
[1747713304333,0.05,2549.9,2549.8,9.59615272]
[1747713305336,0.05,2549.9,2549.8,14.88509972]
[1747713305634,0.05,2549.9,2549.8,17.22604545]
[1747713305836,0.05,2549.9,2549.8,14.71109545]
[1747713306436,0.05,2549.9,2549.8,14.24311997]
[1747713306733,3.97172242,2549.9,2549.8,11.46912297]
[1747713306938,3.97172242,2549.9,2549.8,14.24311997]
[1747713307455,3.97172242,2549.9,2549.8,11.46912297]
[1747713308138,3.97172242,2549.9,2549.8,14.24311997]
[1747713308854,3.97172242,2549.9,2549.8,11.46912297]
[1747713309517,3.97172242,2549.9,2549.8,14.24311997]
[1747713310259,3.97172242,2549.9,2549.8,10.71622297]
[1747713312136,3.97172242,2549.9,2549.8,18.61622297]
[1747713316024,3.97172242,2549.9,2549.8,16.27527724]
[1747713316025,4.74952242,2549.9,2549.8,16.27527724]
[1747713317665,4.74952242,2549.9,2549.8,15.9]
[1747713320365,4.74952242,2549.9,2549.8,8.27478171]
[1747713321272,4.74952242,2549.9,2549.8,0.37478171]
[1747713321569,4.74952242,2549.9,2549.8,8.27478171]
[1747713323041,4.74952242,2549.9,2549.8,7.9]
[1747713323246,4.74952242,2549.9,2549.3,24.934]
[1747713323247,3.92249156,2549.4,2549.3,24.934]
[1747713323446,3.92249156,2549.4,2549.3,32.834]
[1747713323641,3.92249156,2549.4,2549.3,24.934]
[1747713323850,3.92249156,2549.4,2549.3,32.834]
[1747713324048,3.92249156,2549.4,2549.3,33.20900309]
[1747713325683,3.92249156,2549.4,2549.3,34.57615696]
[1747713330379,0.8278,2549.9,2549.4,8.0]
[1747713330576,3.92233771,2549.5,2549.4,8.0]
[1747713330880,3.92233771,2549.5,2549.4,8.37500309]
[1747713331883,3.92233771,2549.5,2549.4,9.20080309]
[1747713332086,3.92233771,2549.5,2549.4,12.74099879]
[1747713332283,0.05,2549.9,2549.4,29.65042179]
[1747713332490,3.97180021,2549.9,2549.5,0.8258]
[1747713332860,3.97180021,2549.9,2549.5,1.66877857]
[1747713333676,0.05,2549.9,2549.7,8.0]
[1747713333863,0.05,2549.9,2549.8,9.89500743]
[1747713334063,0.05,2549.9,2549.8,10.27001052]
[1747713335107,0.05,2549.9,2549.8,18.24481052]
[1747713335306,0.05,2550.9,2550.8,0.8207]
[1747713335519,0.05,2550.9,2550.8,45.9221]
[1747713335697,0.05,2550.9,2550.8,45.522218]
[1747713335897,0.05,2550.9,2550.8,28.319203]
[1747713336108,0.05,2550.9,2550.8,39.5047]
[1747713336270,0.05,2550.9,2550.8,51.21470159]
[1747713336467,0.05,2550.9,2550.8,47.29436288]
[1747713337571,0.05,2550.9,2550.8,47.66936597]
[1747713338912,0.05,2550.9,2550.8,48.05863149]
[1747713339405,0.05,2550.9,2550.8,44.17133149]
[1747713339610,0.05,2550.9,2550.8,57.50250249]
[1747713341175,0.05,2550.9,2550.8,53.93322349]
[1747713341380,0.05,2550.9,2550.8,53.69580349]
[1747713342119,0.05,2550.9,2550.8,53.28711949]
[1747713343313,0.05,2550.9,2550.8,33.96858749]
[1747713343520,0.05,2550.9,2550.8,47.71458749]
[1747713343907,0.05,2550.9,2550.8,51.6349262]
[1747713344410,3.91887561,2551.8,2551.3,8.0]
[1747713344599,3.91926317,2551.5,2551.4,22.546]
[1747713344800,0.05,2551.9,2551.5,8.0]
[1747713345420,3.91880241,2551.8,2551.5,8.0]
[1747713346129,3.91880241,2551.8,2551.6,15.869]
[1747713346130,3.91895599,2551.7,2551.6,15.869]
[1747713346343,3.91895599,2551.7,2551.6,8.0]
[1747713346493,3.91895599,2551.7,2551.6,15.869]
[1747713348300,3.91895599,2551.7,2551.6,8.0]
[1747713348618,3.91881477,2551.8,2551.7,8.0]
[1747713348619,3.91889954,2551.8,2551.7,8.0]
[1747713349023,4.69299954,2551.8,2551.7,7.868]
[1747713349637,3.91926317,2551.5,2551.2,0.7539]
[1747713349803,3.91926317,2551.5,2551.4,8.0]
[1747713350704,3.91957041,2551.3,2551.2,0.7539]
[1747713351024,3.91957041,2551.3,2551.2,16.6219]
[1747713351331,3.91957041,2551.3,2551.2,18.87169]
[1747713351516,4.69296984,2551.8,2551.2,18.87169]
[1747713351517,0.05,2551.9,2551.3,8.7693]
[1747713351729,0.05,2551.9,2551.6,0.7693]